fUSD/lending_fUSD_20250519
["ID","MTS","AMOUNT","RATE_DAILY","PERIOD"]
[361625792,1747648243860,-420.0,0.00013698,2]
[361625794,1747648243869,-400.0,0.00013698,2]
[361625796,1747648243879,-547.52,0.00013698,2]
[361625798,1747648243888,-458.82,0.00013698,2]
[361625800,1747648243897,-420.0,0.00013698,2]
[361625802,1747648243906,-1127.99,0.00013698,2]
[361625804,1747648243915,-435.75,0.00013698,2]
[361625806,1747648243924,-420.0,0.00013698,2]
[361625808,1747648243933,-420.0,0.00013698,2]
[361625810,1747648243943,-595.61,0.00013698,2]
[361625811,1747648243952,-400.0,0.00013698,2]
[361625813,1747648243962,-420.0,0.00013698,2]
[361625815,1747648243971,-448.29785865,0.00013698,2]
[361625817,1747648243980,-914.03,0.00013698,2]
[361625819,1747648243989,-458.63,0.00013698,2]
[361625821,1747648243998,-192.21947831,0.00013698,2]
[361625823,1747648244008,-420.0,0.00013698,2]
[361625825,1747648244017,-420.0,0.00013698,2]
[361625827,1747648244026,-1201.51,0.00013698,2]
[361625829,1747648244038,-507.1,0.00013698,2]
[361625831,1747648244047,-193.23648156,0.00013698,2]
[361625833,1747648244056,-420.0,0.00013698,2]
[361625835,1747648244065,-500.31,0.00013698,2]
[361625837,1747648244074,-400.0,0.00013698,2]
[361625839,1747648244083,-420.0,0.00013698,2]
[361625841,1747648244092,-420.0,0.00013698,2]
[361625843,1747648244101,-595.26,0.00013698,2]
[361625845,1747648244110,-420.0,0.00013698,2]
[361625847,1747648244119,-423.63,0.00013698,2]
[361625849,1747648244129,-420.0,0.00013698,2]
[361625851,1747648244138,-400.0,0.00013698,2]
[361625853,1747648244148,-289.22394018,0.00013698,2]
[361625855,1747648244158,-420.0,0.00013698,2]
[361625857,1747648244168,-420.0,0.00013698,2]
[361625859,1747648244177,-420.0,0.00013698,2]
[361625861,1747648244186,-919.71,0.00013698,2]
[361625863,1747648244197,-964.02,0.00013698,2]
[361625865,1747648244206,-1273.28,0.00013698,2]
[361625867,1747648244215,-420.0,0.00013698,2]
[361625868,1747648244223,-512.79,0.00013698,2]
[361625870,1747648244232,-401.61679254,0.00013698,2]
[361625873,1747648244246,-420.0,0.00013698,2]
[361625874,1747648244255,-420.0,0.00013698,2]
[361625876,1747648244264,-420.0,0.00013698,2]
[361625878,1747648244275,-400.0,0.00013698,2]
[361625880,1747648244287,-649.77,0.00013698,2]
[361625883,1747648244297,-420.0,0.00013698,2]
[361625885,1747648244306,-404.64456124,0.00013698,2]
[361625886,1747648244316,-420.0,0.00013698,2]
[361625888,1747648244325,-420.0,0.00013698,2]
[361625889,1747648244334,-420.0,0.00013698,2]
[361625891,1747648244342,-500.0,0.00013698,2]
[361625893,1747648244351,-500.0,0.00013698,2]
[361625894,1747648244360,-380.0,0.00013698,2]
[361625895,1747648244370,-872.21,0.00013698,2]
[361625896,1747648244378,-420.0,0.00013698,2]
[361625897,1747648244387,-1205.17,0.00013698,2]
[361625898,1747648244396,-420.0,0.00013698,2]
[361625899,1747648244404,-420.0,0.00013698,2]
[361625900,1747648244414,-420.0,0.00013698,2]
[361625901,1747648244422,-1803.25,0.00013698,2]
[361625902,1747648244431,-420.0,0.00013698,2]
[361625903,1747648244440,-420.0,0.00013698,2]
[361625904,1747648244449,-420.0,0.00013698,2]
[361625905,1747648244457,-400.0,0.00013698,2]
[361625906,1747648244466,-420.0,0.00013698,2]
[361625907,1747648244475,-502.01937361,0.00013698,2]
[361625908,1747648244485,-603.2,0.00013698,2]
[361625910,1747648244495,-420.0,0.00013698,2]
[361625912,1747648244504,-500.0,0.00013698,2]
[361625914,1747648244513,-420.0,0.00013698,2]
[361625916,1747648244523,-420.0,0.00013698,2]
[361625918,1747648244534,-402.64050371,0.00013698,2]
[361625920,1747648244543,-420.0,0.00013698,2]
[361625922,1747648244553,-420.0,0.00013698,2]
[361625924,1747648244562,-420.0,0.00013698,2]
[361625926,1747648244571,-420.0,0.00013698,2]
[361625928,1747648244581,-420.0,0.00013698,2]
[361625930,1747648244590,-470.4,0.00013698,2]
[361625931,1747648244599,-420.0,0.00013698,2]
[361625933,1747648244609,-400.0,0.00013698,2]
[361625935,1747648244618,-614.37,0.00013698,2]
[361625937,1747648244627,-420.0,0.00013698,2]
[361625939,1747648244637,-721.99,0.00013698,2]
[361625941,1747648244646,-420.0,0.00013698,2]
[361625943,1747648244655,-464.08,0.00013698,2]
[361625945,1747648244665,-400.0,0.00013698,2]
[361625947,1747648244674,-420.0,0.00013698,2]
[361625949,1747648244683,-400.0,0.00013698,2]
[361625952,1747648244695,-420.0,0.00013698,2]
[361625954,1747648244705,-420.0,0.00013698,2]
[361625956,1747648244715,-420.0,0.00013698,2]
[361625958,1747648244724,-400.0,0.00013698,2]
[361625960,1747648244733,-420.0,0.00013698,2]
[361625962,1747648244743,-431.28493272,0.00013698,2]
[361625963,1747648244753,-503.27,0.00013698,2]
[361625965,1747648244762,-420.0,0.00013698,2]
[361625967,1747648244771,-684.12,0.00013698,2]
[361625969,1747648244780,-420.0,0.00013698,2]
[361625971,1747648244790,-420.0,0.00013698,2]
[361625973,1747648244799,-400.0,0.00013698,2]
[361625975,1747648244809,-905.03,0.00013698,2]
[361625977,1747648244818,-762.78,0.00013698,2]
[361625979,1747648244826,-400.0,0.00013698,2]
[361625981,1747648244836,-420.0,0.00013698,2]
[361625983,1747648244845,-420.0,0.00013698,2]
[361625985,1747648244855,-981.37,0.00013698,2]
[361625987,1747648244864,-796.52,0.00013698,2]
[361625989,1747648244873,-420.0,0.00013698,2]
[361625992,1747648244883,-400.0,0.00013698,2]
[361625994,1747648244893,-420.0,0.00013698,2]
[361625996,1747648244903,-953.58,0.00013698,2]
[361625997,1747648244912,-400.91902702,0.00013698,2]
[361625999,1747648244922,-420.0,0.00013698,2]
[361626002,1747648244931,-420.0,0.00013698,2]
[361626003,1747648244941,-722.34,0.00013698,2]
[361626005,1747648244951,-420.0,0.00013698,2]
[361626008,1747648244961,-402.11715253,0.00013698,2]
[361626010,1747648244972,-420.0,0.00013698,2]
[361626012,1747648244982,-420.0,0.00013698,2]
[361626014,1747648244991,-446.26,0.00013698,2]
[361626016,1747648245000,-420.0,0.00013698,2]
[361626018,1747648245009,-1159.19,0.00013698,2]
[361626020,1747648245019,-263.14069619,0.00013698,2]
[361626022,1747648245028,-400.0,0.00013698,2]
[361626024,1747648245038,-420.0,0.00013698,2]
[361626025,1747648245047,-420.0,0.00013698,2]
[361626027,1747648245056,-400.0,0.00013698,2]
[361626029,1747648245066,-740.14,0.00013698,2]
[361626031,1747648245075,-806.16,0.00013698,2]
[361626033,1747648245084,-552.08,0.00013698,2]
[361626035,1747648245093,-420.0,0.00013698,2]
[361626037,1747648245102,-482.44,0.00013698,2]
[361626039,1747648245112,-420.0,0.00013698,2]
[361626041,1747648245121,-305.85197547,0.00013698,2]
[361626043,1747648245130,-400.0,0.00013698,2]
[361626045,1747648245139,-476.97,0.00013698,2]
[361626047,1747648245149,-659.31,0.00013698,2]
[361626049,1747648245157,-629.37,0.00013698,2]
[361626051,1747648245167,-616.45,0.00013698,2]
[361626053,1747648245176,-420.0,0.00013698,2]
[361626055,1747648245184,-420.0,0.00013698,2]
[361626057,1747648245194,-400.0,0.00013698,2]
[361626059,1747648245206,-420.0,0.00013698,2]
[361626062,1747648245216,-420.0,0.00013698,2]
[361626064,1747648245226,-420.0,0.00013698,2]
[361626066,1747648245235,-420.0,0.00013698,2]
[361626068,1747648245248,-401.04565846,0.00013698,2]
[361626070,1747648245258,-420.0,0.00013698,2]
[361626072,1747648245271,-400.0,0.00013698,2]
[361626074,1747648245283,-420.0,0.00013698,2]
[361626078,1747648245297,-420.0,0.00013698,2]
[361626080,1747648245309,-420.0,0.00013698,2]
[361626082,1747648245321,-401.2464519,0.00013698,2]
[361626085,1747648245332,-420.0,0.00013698,2]
[361626087,1747648245343,-400.14891288,0.00013698,2]
[361626089,1747648245355,-310.80069139,0.00013698,2]
[361626091,1747648245368,-527.03,0.00013698,2]
[361626094,1747648245379,-420.0,0.00013698,2]
[361626096,1747648245391,-420.0,0.00013698,2]
[361626098,1747648245405,-420.0,0.00013698,2]
[361626101,1747648245417,-420.0,0.00013698,2]
[361626103,1747648245430,-420.0,0.00013698,2]
[361626105,1747648245442,-525.48086813,0.00013698,2]
[361626108,1747648245453,-420.0,0.00013698,2]
[361626110,1747648245465,-420.0,0.00013698,2]
[361626112,1747648245476,-936.035584,0.00013698,2]
[361626114,1747648245486,-420.0,0.00013698,2]
[361626116,1747648245499,-400.0,0.00013698,2]
[361626119,1747648245512,-420.0,0.00013698,2]
[361626121,1747648245525,-420.0,0.00013698,2]
[361626123,1747648245537,-833.81,0.00013698,2]
[361626125,1747648245549,-400.0,0.00013698,2]
[361626128,1747648245561,-420.0,0.00013698,2]
[361626130,1747648245574,-420.0,0.00013698,2]
[361626132,1747648245587,-420.0,0.00013698,2]
[361626134,1747648245600,-420.0,0.00013698,2]
[361626137,1747648245611,-420.0,0.00013698,2]
[361626139,1747648245623,-420.0,0.00013698,2]
[361626141,1747648245636,-420.0,0.00013698,2]
[361626143,1747648245648,-678.11,0.00013698,2]
[361626146,1747648245661,-401.9694287,0.00013698,2]
[361626148,1747648245672,-420.0,0.00013698,2]
[361626150,1747648245685,-420.0,0.00013698,2]
[361626152,1747648245696,-944.41,0.00013698,2]
[361626155,1747648245707,-420.0,0.00013698,2]
[361626157,1747648245719,-420.0,0.00013698,2]
[361626159,1747648245731,-489.49,0.00013698,2]
[361626161,1747648245744,-842.86,0.00013698,2]
[361626164,1747648245755,-420.0,0.00013698,2]
[361626166,1747648245766,-420.0,0.00013698,2]
[361626168,1747648245777,-370.1201983,0.00013698,2]
[361626170,1747648245790,-420.0,0.00013698,2]
[361626172,1747648245800,-360.0,0.00013698,2]
[361626174,1747648245811,-400.0,0.00013698,2]
[361626177,1747648245822,-654.6,0.00013698,2]
[361626179,1747648245833,-1742.9,0.00013698,2]
[361626181,1747648245847,-665.75,0.00013698,2]
[361626183,1747648245860,-420.0,0.00013698,2]
[361626185,1747648245871,-400.0,0.00013698,2]
[361626188,1747648245882,-387.1666385,0.00013698,2]
[361626190,1747648245893,-895.8,0.00013698,2]
[361626192,1747648245903,-420.0,0.00013698,2]
[361626194,1747648245915,-456.2,0.00013698,2]
[361626196,1747648245928,-420.0,0.00013698,2]
[361626199,1747648245941,-420.0,0.00013698,2]
[361626201,1747648245953,-671.29,0.00013698,2]
[361626203,1747648245964,-420.0,0.00013698,2]
[361626205,1747648245974,-1145.54,0.00013698,2]
[361626207,1747648245985,-722.76,0.00013698,2]
[361626209,1747648245995,-320.0,0.00013698,2]
[361626212,1747648246007,-420.0,0.00013698,2]
[361626214,1747648246019,-380.0,0.00013698,2]
[361626216,1747648246029,-747.75,0.00013698,2]
[361626218,1747648246041,-420.0,0.00013698,2]
[361626220,1747648246051,-420.0,0.00013698,2]
[361626223,1747648246062,-608.15,0.00013698,2]
[361626225,1747648246073,-380.8253408,0.00013698,2]
[361626227,1747648246084,-401.74571758,0.00013698,2]
[361626229,1747648246095,-745.94,0.00013698,2]
[361626231,1747648246105,-511.83,0.00013698,2]
[361626233,1747648246116,-420.0,0.00013698,2]
[361626236,1747648246127,-420.0,0.00013698,2]
[361626238,1747648246138,-366.88096896,0.00013698,2]
[361626240,1747648246149,-420.0,0.00013698,2]
[361626242,1747648246159,-420.0,0.00013698,2]
[361626243,1747648246170,-439.4,0.00013698,2]
[361626244,1747648246180,-420.0,0.00013698,2]
[361626245,1747648246191,-420.0,0.00013698,2]
[361626246,1747648246205,-420.0,0.00013698,2]
[361626247,1747648246216,-1971.91,0.00013698,2]
[361626248,1747648246226,-320.0,0.00013698,2]
[361626249,1747648246243,-420.0,0.00013698,2]
[361626250,1747648246253,-420.0,0.00013698,2]
[361626251,1747648246265,-420.0,0.00013698,2]
[361626252,1747648246276,-420.0,0.00013698,2]
[361626253,1747648246289,-350.80652056,0.00013698,2]
[361626254,1747648246300,-420.0,0.00013698,2]
[361626255,1747648246311,-420.0,0.00013698,2]
[361626256,1747648246321,-420.0,0.00013698,2]
[361626257,1747648246332,-420.0,0.00013698,2]
[361626258,1747648246343,-420.0,0.00013698,2]
[361626259,1747648246354,-400.0,0.00013698,2]
[361626260,1747648246367,-1030.58,0.00013698,2]
[361626261,1747648246380,-653.0,0.00013698,2]
[361626262,1747648246392,-420.0,0.00013698,2]
[361626263,1747648246404,-420.0,0.00013698,2]
[361626264,1747648246415,-523.38,0.00013698,2]
[361626265,1747648246427,-420.0,0.00013698,2]
[361626266,1747648246437,-400.0,0.00013698,2]
[361626267,1747648246448,-618.82,0.00013698,2]
[361626268,1747648246459,-400.0,0.00013698,2]
[361626269,1747648246471,-420.0,0.00013698,2]
[361626270,1747648246482,-300.0,0.00013698,2]
[361626271,1747648246492,-420.0,0.00013698,2]
[361626272,1747648246503,-202.9743302,0.00013698,2]
[361626273,1747648246513,-945.11,0.00013698,2]
[361626274,1747648246525,-1100.78,0.00013698,2]
[361626275,1747648246536,-845.44,0.00013698,2]
[361626276,1747648246547,-420.0,0.00013698,2]
[361626277,1747648246558,-428.93,0.00013698,2]
[361626278,1747648246569,-555.49,0.00013698,2]
[361626279,1747648246579,-3904.54,0.00013698,2]
[361626280,1747648246590,-420.0,0.00013698,2]
[361626281,1747648246601,-491.03,0.00013698,2]
[361626282,1747648246611,-420.0,0.00013698,2]
[361626283,1747648246622,-1417.33,0.00013698,2]
[361626284,1747648246632,-471.7,0.00013698,2]
[361626285,1747648246643,-400.0,0.00013698,2]
[361626286,1747648246657,-401.97023752,0.00013698,2]
[361626287,1747648246669,-428.82,0.00013698,2]
[361626288,1747648246682,-529.84,0.00013698,2]
[361626289,1747648246693,-420.0,0.00013698,2]
[361626290,1747648246705,-420.0,0.00013698,2]
[361626291,1747648246716,-751.98,0.00013698,2]
[361626292,1747648246728,-965.86,0.00013698,2]
[361626293,1747648246740,-250.0,0.00013698,2]
[361626294,1747648246751,-654.15,0.00013698,2]
[361626295,1747648246762,-420.0,0.00013698,2]
[361626296,1747648246774,-405.15820895,0.00013698,2]
[361626297,1747648246786,-420.0,0.00013698,2]
[361626298,1747648246797,-420.0,0.00013698,2]
[361626299,1747648246808,-400.0,0.00013698,2]
[361626300,1747648246819,-978.86,0.00013698,2]
[361626301,1747648246830,-420.0,0.00013698,2]
[361626302,1747648246841,-340.0,0.00013698,2]
[361626303,1747648246853,-420.0,0.00013698,2]
[361626304,1747648246864,-1197.16,0.00013698,2]
[361626305,1747648246876,-420.0,0.00013698,2]
[361626306,1747648246887,-400.0,0.00013698,2]
[361626307,1747648246899,-3874.91,0.00013698,2]
[361626308,1747648246911,-7215.12,0.00013698,2]
[361626309,1747648246923,-500.0,0.00013698,2]
[361626310,1747648246933,-420.0,0.00013698,2]
[361626311,1747648246945,-1074.38,0.00013698,2]
[361626312,1747648246957,-400.0,0.00013698,2]
[361626313,1747648246969,-3570.35,0.00013698,2]
[361626314,1747648246982,-1338.14,0.00013698,2]
[361626315,1747648246993,-438.46,0.00013698,2]
[361626316,1747648247004,-420.0,0.00013698,2]
[361626317,1747648247017,-420.0,0.00013698,2]
[361626318,1747648247030,-420.0,0.00013698,2]
[361626319,1747648247042,-784.16,0.00013698,2]
[361626320,1747648247052,-568.06,0.00013698,2]
[361626321,1747648247064,-420.0,0.00013698,2]
[361626322,1747648247075,-157763.35,0.00013698,2]
[361626323,1747648247085,-420.0,0.00013698,2]
[361626324,1747648247097,-420.0,0.00013698,2]
[361626325,1747648247107,-573.38327109,0.00013698,2]
[361626326,1747648247118,-420.0,0.00013698,2]
[361626327,1747648247129,-558.69,0.00013698,2]
[361626328,1747648247140,-420.0,0.00013698,2]
[361626329,1747648247151,-3688.27,0.00013698,2]
[361626330,1747648247162,-1010.02,0.00013698,2]
[361626331,1747648247173,-1723.07,0.00013698,2]
[361626332,1747648247183,-2317.83,0.00013698,2]
[361626333,1747648247195,-420.0,0.00013698,2]
[361626334,1747648247208,-420.0,0.00013698,2]
[361626335,1747648247219,-420.0,0.00013698,2]
[361626336,1747648247230,-400.0,0.00013698,2]
[361626337,1747648247243,-12613.62,0.00013698,2]
[361626338,1747648247253,-2431.65,0.00013698,2]
[361626339,1747648247264,-492.29080574,0.00013698,2]
[361626340,1747648247276,-672.37,0.00013698,2]
[361626341,1747648247288,-400.0,0.00013698,2]
[361626342,1747648247299,-420.0,0.00013698,2]
[361626343,1747648247310,-420.0,0.00013698,2]
[361626344,1747648247321,-420.0,0.00013698,2]
[361626345,1747648247332,-8266.46,0.00013698,2]
[361626346,1747648247343,-400.0,0.00013698,2]
[361626347,1747648247354,-578.75,0.00013698,2]
[361626348,1747648247365,-1000.62,0.00013698,2]
[361626349,1747648247376,-420.0,0.00013698,2]
[361626350,1747648247387,-420.0,0.00013698,2]
[361626351,1747648247399,-340.0,0.00013698,2]
[361626352,1747648247410,-7159.49,0.00013698,2]
[361626353,1747648247422,-400.0,0.00013698,2]
[361626354,1747648247432,-420.0,0.00013698,2]
[361626355,1747648247443,-1048.71,0.00013698,2]
[361626356,1747648247454,-420.0,0.00013698,2]
[361626357,1747648247465,-540.38,0.00013698,2]
[361626358,1747648247476,-420.0,0.00013698,2]
[361626359,1747648247487,-1327.16,0.00013698,2]
[361626360,1747648247497,-729.17,0.00013698,2]
[361626361,1747648247509,-400.0,0.00013698,2]
[361626362,1747648247523,-655.7,0.00013698,2]
[361626363,1747648247534,-1066.73,0.00013698,2]
[361626364,1747648247545,-1230.63,0.00013698,2]
[361626365,1747648247557,-420.0,0.00013698,2]
[361626366,1747648247568,-420.0,0.00013698,2]
[361626367,1747648247579,-420.0,0.00013698,2]
[361626368,1747648247591,-966.54,0.00013698,2]
[361626369,1747648247602,-420.0,0.00013698,2]
[361626370,1747648247613,-420.0,0.00013698,2]
[361626371,1747648247623,-10905.82,0.00013698,2]
[361626372,1747648247634,-518.18,0.00013698,2]
[361626373,1747648247644,-420.0,0.00013698,2]
[361626374,1747648247655,-2613.39,0.00013698,2]
[361626375,1747648247665,-83844.51,0.00013698,2]
[361626376,1747648247676,-420.0,0.00013698,2]
[361626377,1747648247687,-1026.37,0.00013698,2]
[361626378,1747648247698,-340.0,0.00013698,2]
[361626379,1747648247708,-420.0,0.00013698,2]
[361626380,1747648247719,-420.0,0.00013698,2]
[361626381,1747648247729,-889.58,0.00013698,2]
[361626382,1747648247740,-594.64,0.00013698,2]
[361626383,1747648247750,-17393.34,0.00013698,2]
[361626384,1747648247760,-400.0,0.00013698,2]
[361626385,1747648247772,-400.0,0.00013698,2]
[361626386,1747648247784,-375.82657516,0.00013698,2]
[361626387,1747648247795,-607.98,0.00013698,2]
[361626388,1747648247805,-1146.71,0.00013698,2]
[361626389,1747648247815,-688.64,0.00013698,2]
[361626390,1747648247826,-452.76,0.00013698,2]
[361626391,1747648247837,-2847.3,0.00013698,2]
[361626392,1747648247848,-911.15,0.00013698,2]
[361626393,1747648247858,-400.0,0.00013698,2]
[361626394,1747648247869,-1305.76,0.00013698,2]
[361626395,1747648247880,-420.0,0.00013698,2]
[361626396,1747648247890,-1296.75,0.00013698,2]
[361626397,1747648247901,-420.0,0.00013698,2]
[361626398,1747648247912,-420.0,0.00013698,2]
[361626399,1747648247922,-568.11,0.00013698,2]
[361626400,1747648247933,-420.0,0.00013698,2]
[361626401,1747648247944,-401.09920082,0.00013698,2]
[361626402,1747648247954,-320.0,0.00013698,2]
[361626403,1747648247965,-420.0,0.00013698,2]
[361626404,1747648247977,-420.0,0.00013698,2]
[361626405,1747648247988,-1064.58,0.00013698,2]
[361626406,1747648247999,-420.0,0.00013698,2]
[361626407,1747648248010,-796.82,0.00013698,2]
[361626408,1747648248021,-400.0,0.00013698,2]
[361626409,1747648248033,-7628.56,0.00013698,2]
[361626410,1747648248044,-420.0,0.00013698,2]
[361626411,1747648248054,-2368.73,0.00013698,2]
[361626412,1747648248065,-420.0,0.00013698,2]
[361626413,1747648248077,-705.47,0.00013698,2]
[361626414,1747648248088,-1148.07,0.00013698,2]
[361626415,1747648248099,-420.0,0.00013698,2]
[361626416,1747648248109,-2406.8,0.00013698,2]
[361626417,1747648248121,-400.0,0.00013698,2]
[361626418,1747648248132,-420.0,0.00013698,2]
[361626419,1747648248143,-699.95,0.00013698,2]
[361626420,1747648248155,-319.3559399,0.00013698,2]
[361626421,1747648248165,-2619.4,0.00013698,2]
[361626422,1747648248177,-420.0,0.00013698,2]
[361626423,1747648248189,-709.29,0.00013698,2]
[361626424,1747648248204,-471.08650507,0.00013698,2]
[361626425,1747648248216,-441.09079016,0.00013698,2]
[361626426,1747648248228,-15103.18,0.00013698,2]
[361626427,1747648248239,-1724.96,0.00013698,2]
[361626428,1747648248251,-432.17,0.00013698,2]
[361626429,1747648248262,-420.0,0.00013698,2]
[361626430,1747648248273,-420.0,0.00013698,2]
[361626431,1747648248287,-420.0,0.00013698,2]
[361626432,1747648248300,-512.57,0.00013698,2]
[361626433,1747648248311,-420.0,0.00013698,2]
[361626434,1747648248322,-6720.88,0.00013698,2]
[361626435,1747648248333,-1608.06,0.00013698,2]
[361626436,1747648248344,-732.29,0.00013698,2]
[361626437,1747648248355,-420.0,0.00013698,2]
[361626438,1747648249069,-741.28,0.00013698,2]
[361626439,1747648249093,-1456.04,0.00013698,2]
[361626440,1747648249107,-400.0,0.00013698,2]
[361626441,1747648249118,-696.9,0.00013698,2]
[361626442,1747648249128,-400.0,0.00013698,2]
[361626443,1747648249138,-726.86,0.00013698,2]
[361626444,1747648249147,-420.0,0.00013698,2]
[361626445,1747648249157,-689.5,0.00013698,2]
[361626446,1747648249167,-2404.28,0.00013698,2]
[361626447,1747648249177,-1099.04,0.00013698,2]
[361626448,1747648249186,-1875.21,0.00013698,2]
[361626449,1747648249404,-3063.32,0.00013698,2]
[361626450,1747648249414,-3624.48,0.00013698,2]
[361626451,1747648249423,-420.0,0.00013698,2]
[361626452,1747648249433,-344.8975038,0.00013698,2]
[361626453,1747648249443,-420.0,0.00013698,2]
[361626454,1747648249452,-420.0,0.00013698,2]
[361626455,1747648249462,-420.0,0.00013698,2]
[361626456,1747648249471,-975.49,0.00013698,2]
[361626457,1747648249482,-320.0,0.00013698,2]
[361626458,1747648249491,-400.0,0.00013698,2]
[361626459,1747648249501,-3740.16,0.00013698,2]
[361626460,1747648249511,-420.0,0.00013698,2]
[361626461,1747648249521,-420.0,0.00013698,2]
[361626462,1747648249530,-488.33182911,0.00013698,2]
[361626463,1747648249540,-400.0,0.00013698,2]
[361626464,1747648249549,-1868.0,0.00013698,2]
[361626465,1747648249559,-409.15142023,0.00013698,2]
[361626466,1747648249569,-403.58703708,0.00013698,2]
[361626467,1747648249578,-400.604644,0.00013698,2]
[361626468,1747648249588,-400.0,0.00013698,2]
[361626469,1747648249598,-1411.96,0.00013698,2]
[361626470,1747648249607,-400.0,0.00013698,2]
[361626471,1747648249616,-420.0,0.00013698,2]
[361626472,1747648249626,-400.0,0.00013698,2]
[361626473,1747648249635,-420.0,0.00013698,2]
[361626474,1747648249645,-400.0,0.00013698,2]
[361626475,1747648249654,-400.0,0.00013698,2]
[361626476,1747648249664,-2011.31,0.00013698,2]
[361626477,1747648249673,-557.08,0.00013698,2]
[361626478,1747648249682,-3846.23,0.00013698,2]
[361626479,1747648249692,-1801.16,0.00013698,2]
[361626480,1747648249701,-420.0,0.00013698,2]
[361626481,1747648249710,-479.93,0.00013698,2]
[361626482,1747648249720,-404.13617223,0.00013698,2]
[361626483,1747648249730,-400.0,0.00013698,2]
[361626484,1747648249739,-465.36767359,0.00013698,2]
[361626485,1747648249749,-400.0,0.00013698,2]
[361626486,1747648249758,-400.0,0.00013698,2]
[361626487,1747648249767,-1993.0,0.00013698,2]
[361626488,1747648249777,-1208.43,0.00013698,2]
[361626489,1747648249786,-420.0,0.00013698,2]
[361626490,1747648249795,-420.0,0.00013698,2]
[361626491,1747648249805,-606.57,0.00013698,2]
[361626492,1747648249814,-400.0,0.00013698,2]
[361626493,1747648249823,-420.0,0.00013698,2]
[361626494,1747648249832,-1019.78,0.00013698,2]
[361626495,1747648249842,-400.0,0.00013698,2]
[361626496,1747648249852,-828.1,0.00013698,2]
[361626497,1747648249861,-2104.44,0.00013698,2]
[361626498,1747648249872,-420.0,0.00013698,2]
[361626499,1747648249882,-400.0,0.00013698,2]
[361626500,1747648249892,-420.0,0.00013698,2]
[361626501,1747648249901,-549.09175762,0.00013698,2]
[361626502,1747648249910,-400.0,0.00013698,2]
[361626503,1747648249921,-420.0,0.00013698,2]
[361626504,1747648249932,-400.0,0.00013698,2]
[361626505,1747648249941,-1000.0,0.00013698,2]
[361626506,1747648249950,-466.85,0.00013698,2]
[361626507,1747648249960,-400.0,0.00013698,2]
[361626508,1747648249969,-420.0,0.00013698,2]
[361626509,1747648249979,-400.0,0.00013698,2]
[361626510,1747648249988,-1371.89,0.00013698,2]
[361626511,1747648249998,-420.0,0.00013698,2]
[361626512,1747648250008,-968.81,0.00013698,2]
[361626513,1747648250018,-2319.68,0.00013698,2]
[361626514,1747648250028,-400.0,0.00013698,2]
[361626515,1747648250039,-420.0,0.00013698,2]
[361626516,1747648250048,-497.26,0.00013698,2]